Cogmind - Beta 17 @@@ ROGUE MODE // 2026.08.04 @ 20:57:27 Player: Cinder Result: Core melted Performance ------------- Evolutions (5) 2500 Regions Visited (11) 2200 Robots Destroyed (199) 995 Value Destroyed (8012) 8012 Prototype IDs (10) 200 Alien Tech Used (0) 0 Bonus (4858) 4858 TOTAL SCORE: 18765 Bonus ------- High Alert Combat Kills 507 Follower Combat Kills 333 Entered DSFs 500 Met Warlord at Base 500 MAIN.C Attacked Warlord 500 Warlord Defense Kills 2518 Cogmind --------- Core Integrity 0/1000 Matter 185/300 Energy 71/290 System Corruption 0% Temperature Critical (808) Movement Core (1450) Ox28 Location -4/Proximity Caves Parts ------- > --- POWER (2) -------- Reinforced Deuterium Engine > --- PROPULSION (4) --- (None) > --- UTILITY (7) ------ Improved Cooling System High-capacity Storage Unit Advanced Visual Processing Unit Layered Heavy Armor Plating > --- WEAPON (4) ------- Thermoblaster > --- INVENTORY (20) --- Advanced Heat Sink Advanced Cooling System Huge Storage Unit Energy Well (0) Matter Compressor (250) Seismic Detector Improved Medium Armor Plating Advanced Hacking Suite Advanced Hacking Suite Advanced System Shield Authchip [Storage] Vortex Rifle (35) Vortex Rifle (35) Heavy Plasma Cannon Peak State ------------ > --- POWER ------------ Neutrino Core Micro Fission Core > --- PROPULSION ------- Wheel Wheel Wheel Wheel > --- UTILITY ---------- Advanced Heat Sink Advanced Heat Sink Improved Cooling System Huge Storage Unit Advanced Visual Processing Unit Layered Heavy Armor Plating > --- WEAPON ----------- Heavy Plasma Cannon Heavy Plasma Cannon Vortex Catalyst Activator > --- INVENTORY -------- Reinforced Deuterium Engine Neutrino Core Advanced Heat Sink Improved Cooling System Advanced Cooling System High-capacity Storage Unit Energy Well Matter Compressor Seismic Detector Layered Heavy Armor Plating Layered Heavy Armor Plating Layered Heavy Armor Plating Makeshift Ablative Armor Makeshift Ablative Armor Advanced Hacking Suite Advanced Hacking Suite Advanced System Shield Authchip [Storage] Heavy Missile Launcher Heavy Missile Launcher Thermoblaster Thermoblaster [Rating: 86] Favorites ----------- Power Micro Fission Core Engine Improved Ion Engine Power Core Micro Fission Core Propulsion Wheel Treads Armored Medium Treads Leg Improved Aluminum Leg Wheel Wheel Utility Advanced Visual Processing Unit Device Advanced Heat Sink Storage Huge Storage Unit Processor Advanced Visual Processing Unit Protection Layered Heavy Armor Plating Weapon Heavy Plasma Cannon Energy Gun Field Laser Energy Cannon Heavy Plasma Cannon Ballistic Gun Light Assault Rifle Launcher Heavy Missile Launcher Piercing Weapon Vortex Lance Build | -11 -10 -9 -8 -7 -6 -6 -5 -5 -5 -5 -4 ------- Run | Yrd Mat Mat Mat Fac Fac DSF Fac Upp Upp War Pro Slots Evolved 10 | . . 2 2 2 2 . 2 . . . . Power 1 | . . . . . . . 1 . . . . Propulsion 2 | . . 1 . . . . 1 . . . . Utility 5 | . . 1 . 2 2 . . . . . . Weapon 2 | . . . 2 . . . . . . . . Parts Attached 136 | 5 8 21 21 14 3 12 25 4 4 15 4 Power 18 | 1 1 4 2 2 . 2 4 . . 2 . Engine 14 | 1 1 4 2 1 . 2 2 . . 1 . Core 4 | . . . . 1 . . 2 . . 1 . Reactor . | . . . . . . . . . . . . Propulsion 32 | 2 3 6 5 3 1 3 6 1 2 . . Treads 1 | . . . . . . . 1 . . . . Leg 6 | . 2 4 . . . . . . . . . Wheel 25 | 2 1 2 5 3 1 3 5 1 2 . . Hover . | . . . . . . . . . . . . Flight . | . . . . . . . . . . . . Utility 43 | . 1 7 4 4 2 3 10 2 1 7 2 Device 18 | . . 1 2 3 1 2 5 1 1 2 . Storage 4 | . 1 2 . . . . . . . 1 . Processor 1 | . . . . 1 . . . . . . . Hackware . | . . . . . . . . . . . . Protection 20 | . . 4 2 . 1 1 5 1 . 4 2 Artifact . | . . . . . . . . . . . . Weapon 43 | 2 3 4 10 5 . 4 5 1 1 6 2 Energy Gun 8 | . 1 1 3 . . . . . . 2 1 Energy Cannon 24 | . 2 2 5 5 . 4 3 1 1 . 1 Ballistic Gun 2 | 2 . . . . . . . . . . . Ballistic Cannon . | . . . . . . . . . . . . Launcher 8 | . . 1 2 . . . 2 . . 3 . Special Weapon . | . . . . . . . . . . . . Impact Weapon . | . . . . . . . . . . . . Slashing Weapon . | . . . . . . . . . . . . Piercing Weapon 1 | . . . . . . . . . . 1 . Special Melee Weapon . | . . . . . . . . . . . . Unidentified Prototypes 10 | . . 2 2 2 . . . . . 4 . Parts Lost 56 | . 2 2 10 4 1 5 9 2 3 14 4 Power 6 | . . . 1 . . 1 2 . . 2 . Propulsion 19 | . 1 1 4 . 1 2 3 1 2 4 . Utility 15 | . . 1 3 2 . 1 1 . . 5 2 Weapon 16 | . 1 . 2 2 . 1 3 1 1 3 2 Highest Loss Streak 9 | . 1 2 6 2 1 4 3 2 2 9 4 To Critical Strikes 2 | . . . 1 . . . . . . 1 . Average Backups 18 | 1 4 10 23 24 23 24 22 20 18 20 17 Power 1 | . 1 1 1 1 2 1 . 2 2 1 . Propulsion 1 | . 1 1 3 4 2 2 2 2 . . . Utility 10 | . . 3 12 11 12 14 14 13 14 14 12 Weapon 4 | . 1 3 5 6 6 6 4 3 2 3 4 Tool/Special . | . . . . . . . . . . . . Unused Backups 41 | . 2 6 3 3 . 6 13 . . . 8 Power 5 | . 1 2 . 2 . . . . . . . Propulsion 4 | . . 1 . . . . 3 . . . . Utility 25 | . . 3 3 1 . 3 9 . . . 6 Weapon 7 | . 1 . . . . 3 1 . . . 2 Tool/Special . | . . . . . . . . . . . . Average Slot Usage (%) 83 | . 81 98 98 92 92 89 91 93 96 90 25 Engine 5 | . 14 11 8 6 6 6 4 . . . . Core 2 | . . . . . . . 3 11 11 9 . Leg 5 | . 6 28 . . . . . . . . . Wheel 13 | . 21 4 26 15 13 14 18 22 21 20 . Device 11 | . . 8 9 14 20 19 16 17 21 16 . Storage 7 | . 11 11 9 7 6 6 5 5 5 5 5 Processor 3 | . . . . 6 6 6 5 5 5 5 5 Protection 8 | . . 12 8 7 12 8 6 4 5 8 9 Energy Cannon 20 | . 5 21 34 29 26 25 21 22 22 20 . Ballistic Gun 1 | . 19 . . . . . . . . . . Peak Build Rating 86 | 5 11 21 29 46 52 64 81 77 75 86 55 Average Rating 42 | 4 6 18 25 41 51 58 69 74 72 74 30 On Entrance 38 | . 5 11 21 25 46 52 58 73 70 71 25 Avg Prop Armor Cover (%) 6 | . . 6 . . . . 6 . . . . Naked Turns . | . . . . . . . . . . . . Heaviest Build 168 | 8 23 100 115 127 133 152 159 163 151 168 67 Greatest Support 52 | 20 26 39 36 44 44 48 52 46 40 40 3 Greatest Overweight (x) 22 | . 1 9 4 3 3 3 7 7 7 19 22 Average Overweight (x) 2 | . . . 2 2 3 2 2 3 3 3 20 Largest Inventory Capacity 25 | 5 10 25 25 25 25 25 25 25 25 25 20 Average Capacity 20 | 5 9 13 25 25 25 25 25 25 25 24 20 Most Carried 25 | 2 10 25 25 25 25 25 25 25 25 25 20 Average Carried 19 | 1 4 10 23 24 23 24 24 23 22 23 18 Final Capacity 25 | 5 10 25 25 25 25 25 25 25 25 20 20 Final Carried 25 | 2 9 25 22 24 25 23 25 25 22 18 14 Class Distribution -------------------- 40% | Mutant 27% | Scavenger-Tank 26% | Tank 5% | Scavenger-Skirmisher Dominant Class ---------------- Mutant | -10/Materials Mutant | -9/Materials Tank | -8/Materials Tank | -7/Factory Tank | -6/Factory Scavenger-Tank | -6/DSF Scavenger-Tank | -5/Factory Scavenger-Tank | -5/Upper Caves Scavenger-Tank | -5/Upper Caves Scavenger-Skirmisher | -5/Warlord Mutant | -4/Proximity Caves Resources | -11 -10 -9 -8 -7 -6 -6 -5 -5 -5 -5 -4 ----------- Run | Yrd Mat Mat Mat Fac Fac DSF Fac Upp Upp War Pro Matter Collected 3491 | 214 252 300 351 251 . 663 660 331 179 215 75 Remotely . | . . . . . . . . . . . . Salvage Created 8434 | . 624 1486 1191 1118 . 646 1886 333 372 628 150 Parts 360 | . 30 82 60 43 . 28 70 6 18 22 1 Haulers Intercepted 8 | . 1 3 3 1 . . . . . . . Recyclers Shooed 6 | . . . 1 . . . 5 . . . . Parts Field Recycled . | . . . . . . . . . . . . Retrieved Matter . | . . . . . . . . . . . . Parts Self-Destructed 25 | . . . . . . . . 6 18 . 1 Prevented 2 | . . . . . . . . 2 . . . Parts Restored . | . . . . . . . . . . . . Kills | -11 -10 -9 -8 -7 -6 -6 -5 -5 -5 -5 -4 ------- Run | Yrd Mat Mat Mat Fac Fac DSF Fac Upp Upp War Pro Combat Hostiles Destroyed 163 | . 11 33 29 18 . 7 25 9 9 22 . Guns 11 | . 11 . . . . . . . . . . Cannons 82 | . . 27 13 16 . 6 17 2 1 . . AOE 58 | . . 5 13 . . . 7 6 5 22 . Classes Destroyed 20 | . 3 5 2 2 . 2 2 1 . 3 . Worker 9 | . 3 2 . . . . 4 . . . . Builder 5 | . . 1 . . . . 4 . . . . Tunneler 2 | . . . . . . . 2 . . . . Hauler 8 | . 1 3 3 1 . . . . . . . Recycler 4 | . . . . 1 . . 3 . . . . Mechanic 1 | . . . . . . . . . . 1 . Watcher 6 | . . 2 1 1 . . 2 . . . . Swarmer 25 | . . 8 7 . . . . 1 7 2 . Grunt 77 | . 11 15 10 11 . . 13 3 . 14 . Brawler 9 | . . 1 2 1 . . . 3 . 2 . Duelist 2 | . . . . . . . . 1 . 1 . Protector 2 | . . . 1 . . . . . . 1 . Sentry 25 | . . 9 7 2 . . 4 1 1 1 . Demolisher 1 | . . . . . . . . . . 1 . Specialist 4 | . . . . . . 4 . . . . . Hunter 6 | . . . 2 2 . 2 . . . . . Programmer 9 | . . . . 2 . . 7 . . . . Heavy 1 | . . . . . . 1 . . . . . Behemoth 2 | . . . . . . . 1 . 1 . . Striker 1 | . . . . . . . . . . 1 . Decomposer 3 | . . . . . . . . 1 2 . . Packrat 1 | . . . . . . . . . 1 . . Best Kill Streak 14 | . 4 7 6 4 . 3 13 6 4 14 . Combat Bots Only 13 | . 2 7 6 4 . 3 9 6 4 13 . Max Kills in Single Turn 10 | . 1 3 3 1 . 1 5 2 3 10 . Gunslinging . | . . . . . . . . . . . . Exploded 9 | . . 3 3 . . . 5 2 3 9 . Melee . | . . . . . . . . . . . . Uniques/NPCs Destroyed . | . . . . . . . . . . . . Combat | -11 -10 -9 -8 -7 -6 -6 -5 -5 -5 -5 -4 -------- Run | Yrd Mat Mat Mat Fac Fac DSF Fac Upp Upp War Pro Hostile Shots Fired 830 | . 42 107 109 116 . 101 122 25 23 104 81 Missed 225 | . 14 26 34 35 . 26 40 8 6 28 8 Hits 605 | . 28 81 75 81 . 75 82 17 17 76 73 Melee 41 | . . . 3 . . . . 1 . 21 16 Projectile 564 | . 28 81 72 81 . 75 82 16 17 55 57 AOE 13 | . . . . . . . . . . 13 . Critical Strikes 37 | . 1 2 3 2 . 5 5 . 1 6 12 Part Disruptions 1 | . . . . . . . 1 . . . . Damage Taken 13024 | . 421 945 1364 1037 202 1539 1724 464 432 2818 2078 Core 1584 | . 69 103 108 66 . 207 113 47 110 334 427 Absorbed by Shields 145 | . . . . . . . . . . 145 . Regen/Repaired (Parts) 615 | . . . . . 215 . . . . 400 . Core Remaining (%) 81 | 100 72 74 80 90 . 75 . . . . . Volleys Fired 335 | . 43 73 46 38 . 15 69 12 12 16 11 Largest 4 | . 2 2 4 4 . 4 4 4 4 3 1 Hottest 440 | . 60 136 272 272 . 300 350 360 360 440 260 Shots Fired 982 | . 86 148 178 143 . 58 239 48 41 30 11 Gun 92 | . 86 . . . . . . . . . 6 Cannon 829 | . . 143 168 143 . 58 225 36 37 19 . Launcher 61 | . . 5 10 . . . 14 12 4 11 5 Special . | . . . . . . . . . . . . Kinetic 77 | . 77 . . . . . . . . . . Thermal 846 | . . 143 168 143 . 58 225 36 37 25 11 Explosive 45 | . . 5 10 . . . 14 12 4 . . Electromagnetic 9 | . 9 . . . . . . . . . . Entropic 5 | . . . . . . . . . . 5 . Robot Hit Streak 15 | . 15 14 15 11 . 9 12 11 7 9 9 Robot Miss Streak 4 | . 2 4 3 3 . 3 3 4 1 1 3 Penetration Max . | . . . . . . . . . . . . Secondary Targets . | . . . . . . . . . . . . Shots Hit Robots 584 | . 60 82 103 91 . 33 137 29 21 20 8 Core Hits 328 | . 31 44 50 38 . 10 77 26 12 35 5 Critical Kills 6 | . 1 . 1 1 . 1 . 1 1 . . Critical Parts Destroyed . | . . . . . . . . . . . . Critical Strikes 6 | . 1 . 1 1 . 1 . 1 1 . . Meltdown 5 | . . . 1 1 . 1 . 1 1 . . Destroy 1 | . 1 . . . . . . . . . . Melee Attacks . | . . . . . . . . . . . . Impact . | . . . . . . . . . . . . Slashing . | . . . . . . . . . . . . Piercing . | . . . . . . . . . . . . Sneak Attacks . | . . . . . . . . . . . . Combat Hostiles . | . . . . . . . . . . . . Follow-up Attacks . | . . . . . . . . . . . . Damage Inflicted 25298 | . 630 2263 3073 2205 . 1077 5359 2108 1040 7079 464 Guns 732 | . 630 . . . . . . . . . 102 Cannons 12768 | . . 1768 2050 2124 . 1068 3944 738 709 367 . Explosions 11628 | . . 433 1007 . . . 1415 1370 331 6710 362 Melee . | . . . . . . . . . . . . Ramming 170 | . . 62 16 81 . 9 . . . 2 . Kinetic 565 | . 565 . . . . . . . . . . Thermal 13733 | . . 1834 2050 2124 . 1068 3944 738 709 802 464 Explosive 4490 | . . 367 1007 . . . 1415 1370 331 . . Electromagnetic 65 | . 65 . . . . . . . . . . Impact . | . . . . . . . . . . . . Slashing . | . . . . . . . . . . . . Piercing . | . . . . . . . . . . . . Entropic 6275 | . . . . . . . . . . 6275 . Highest Corruption 5 | . . 1 5 5 1 2 3 3 3 3 . Average Corruption 2 | . . 1 2 4 1 1 2 3 3 3 . Corruption Purged . | . . . . . . . . . . . . Corruption Blocked . | . . . . . . . . . . . . Effects 79 | . . 8 2 29 2 9 14 5 9 1 . Message Errors 16 | . . 2 . 6 . 2 2 3 1 . . Matter Fused 20 | . . 1 1 6 1 3 5 . 3 . . Heat Flow Errors 8 | . . . 1 4 . 1 1 . 1 . . Energy Discharges 9 | . . 2 . 4 1 1 1 . . . . Parts Rejected 1 | . . . . 1 . . . . . . . Parts Fused 1 | . . . . 1 . . . . . . . Data Loss (minor) 11 | . . 1 . 3 . 1 3 1 2 . . Data Loss (major) 3 | . . . . . . . 1 1 1 . . Misfires 3 | . . 2 . . . . . . . 1 . Alerts 5 | . . . . 3 . . 1 . 1 . . Weapon Failures 2 | . . . . 1 . 1 . . . . . Overload Shots . | . . . . . . . . . . . . Overflow Damage 562 | . . 86 26 10 . 21 107 36 64 212 . Projectiles 206 | . . . 23 5 . 21 76 30 51 . . Explosions 351 | . . 86 3 . . . 31 6 13 212 . Melee 5 | . . . . 5 . . . . . . . Knockbacks 1 | . . . 1 . . . . . . . . Impact 1 | . . . 1 . . . . . . . . Kinetic . | . . . . . . . . . . . . Secondary . | . . . . . . . . . . . . Self-Inflicted Damage 468 | . . 31 220 40 . 4 103 69 . 1 . Shots 11 | . . 1 5 . . . 2 3 . . . Rammed 6 | . . . 1 2 . 2 . . . 1 . Targets Rammed 21 | . . 15 1 2 . 2 . . . 1 . Kicked 15 | . . 15 . . . . . . . . . Crushed . | . . . . . . . . . . . . Highest Temperature 1390 | . 40 252 360 406 . 289 384 308 198 342 1390 Average Temperature 116 | . 12 36 151 97 . 68 113 90 53 155 650 Received Heat Transfer 2543 | . 234 345 441 378 . 81 390 108 48 211 307 Effects 26 | . . 1 5 2 . . 3 2 . . 13 Shutdowns 3 | . . . 1 . . . . . . . 2 Energy Bleed 6 | . . 1 3 . . . 1 . . . 1 Interference 9 | . . . . 2 . . 2 2 . . 3 Matter Decay 2 | . . . . . . . . . . . 2 Short Circuit 1 | . . . . . . . . . . . 1 Damage (minor) 3 | . . . 1 . . . . . . . 2 Damage (core) 2 | . . . . . . . . . . . 2 Siege Activations . | . . . . . . . . . . . . Martial Activations . | . . . . . . . . . . . . Shielding Activations . | . . . . . . . . . . . . Robots Disrupted . | . . . . . . . . . . . . Combat Hostiles . | . . . . . . . . . . . . Robots Corrupted . | . . . . . . . . . . . . Combat Hostiles . | . . . . . . . . . . . . Parts Fried 1 | . 1 . . . . . . . . . . Impact Corruptions 1 | . . . . 1 . . . . . . . Robots Melted 13 | . . 1 3 2 . 2 1 1 3 . . Combat Hostiles 12 | . . 1 3 2 . 1 1 1 3 . . Parts Melted 60 | . . 6 11 10 . 7 19 6 1 . . Heat Transferred 22367 | . . 3121 3673 3441 . 1620 6500 1200 998 1112 702 Parts Sabotaged . | . . . . . . . . . . . . Parts Stolen . | . . . . . . . . . . . . Parts Stripped . | . . . . . . . . . . . . Power Chain Reactions . | . . . . . . . . . . . . Alert | -11 -10 -9 -8 -7 -6 -6 -5 -5 -5 -5 -4 ------- Run | Yrd Mat Mat Mat Fac Fac DSF Fac Upp Upp War Pro Maximum Alert Level 3 | . . 2 2 2 1 1 3 . . . . Low Security (%) 32 | 100 100 26 1 . 71 70 35 . . . . Level 1 35 | . . 4 73 65 28 29 48 . . . . Level 2 31 | . . 69 25 34 . . 9 . . . . Level 3 1 | . . . . . . . 6 . . . . Level 4 . | . . . . . . . . . . . . Level 5 . | . . . . . . . . . . . . High Security . | . . . . . . . . . . . . Max Security . | . . . . . . . . . . . . Peak Influence 825 | . 182 599 596 524 252 273 825 . . . . Initial 262 | . . 37 226 262 252 53 142 . . . . Average 303 | . 121 366 348 382 160 166 278 . . . . Influence Increases 5813 | . 387 1095 856 772 5 270 1255 190 346 627 10 Destroy 0b10 Robot/C 3440 | . 220 660 560 360 . 140 500 180 300 520 . Destroy 0b10 Robot/NC 200 | . 20 40 25 15 . 5 75 . . 10 10 Destroy Leader 648 | . 42 170 148 94 . 20 134 10 30 . . Allied During Kill 113 | . . . . . . . . . 16 97 . Successful Hack 64 | . . 39 5 8 5 . 7 . . . . Disable Machine 270 | . 15 60 . 45 . 15 135 . . . . Anti-Garrison Action 350 | . . . . 200 . . 150 . . . . Destroy Structure 398 | . . 66 73 5 . . 254 . . . . Partial Spotted 30 | . 15 . 15 . . . . . . . . Lose Combat Pursuer 300 | . 75 60 30 45 . 90 . . . . . Influence Decreases 5813 | . 298 648 814 834 444 74 707 531 368 644 451 Entered New Map 2393 | . . 52 310 316 264 24 131 305 92 458 441 Time Decay 2850 | . 278 576 404 478 170 . 486 206 206 36 10 Lost Part 490 | . 20 20 100 40 10 50 90 20 30 110 . Lost Ally 80 | . . . . . . . . . 40 40 . Squads Dispatched 29 | . 1 2 5 8 . 3 10 . . . . Investigation 8 | . . . 1 5 . . 2 . . . . Extermination 4 | . . . . 2 . . 2 . . . . Reinforcement 7 | . 1 2 . . . 3 1 . . . . Assault 4 | . . . 1 1 . . 2 . . . . Garrison 6 | . . . 3 . . . 3 . . . . Intercept . | . . . . . . . . . . . . Searches Triggered . | . . . . . . . . . . . . Construction Impeded 1 | . . 1 . . . . . . . . . Haulers Reinforced . | . . . . . . . . . . . . Active Scanning Responses . | . . . . . . . . . . . . Cargo Convoy Interrupts . | . . . . . . . . . . . . Stealth | -11 -10 -9 -8 -7 -6 -6 -5 -5 -5 -5 -4 --------- Run | Yrd Mat Mat Mat Fac Fac DSF Fac Upp Upp War Pro Distress Signals 10 | . 3 3 1 3 . . . . . . . Communications Jammed . | . . . . . . . . . . . . Distress Signals . | . . . . . . . . . . . . Times Spotted 247 | . 27 63 36 26 . 14 30 10 7 30 4 Peak Tracking Total 17 | . 6 7 8 4 . 3 9 7 4 17 4 Tactical Retreats 13 | . 2 3 1 3 . 4 . . . . . Traps | -11 -10 -9 -8 -7 -6 -6 -5 -5 -5 -5 -4 ------- Run | Yrd Mat Mat Mat Fac Fac DSF Fac Upp Upp War Pro Traps Triggered 11 | . 1 1 1 3 1 4 . . . . . Indirectly . | . . . . . . . . . . . . Trap Hack Attempts . | . . . . . . . . . . . . Triggered . | . . . . . . . . . . . . Disarmed . | . . . . . . . . . . . . Reprogrammed . | . . . . . . . . . . . . Reused . | . . . . . . . . . . . . Traps Extracted . | . . . . . . . . . . . . Installed . | . . . . . . . . . . . . Triggered . | . . . . . . . . . . . . Machines | -11 -10 -9 -8 -7 -6 -6 -5 -5 -5 -5 -4 ---------- Run | Yrd Mat Mat Mat Fac Fac DSF Fac Upp Upp War Pro Machines Disabled 21 | . 1 4 . 3 . 1 10 2 . . . Max in Single Turn 3 | . 1 1 . 1 . 1 3 2 . . . Garrison Access 2 | . . . . 1 . . 1 . . . . Machines Repaired . | . . . . . . . . . . . . Machines Dismantled . | . . . . . . . . . . . . Machines Sabotaged . | . . . . . . . . . . . . Overloaded Fab Kills . | . . . . . . . . . . . . Hacking | -11 -10 -9 -8 -7 -6 -6 -5 -5 -5 -5 -4 --------- Run | Yrd Mat Mat Mat Fac Fac DSF Fac Upp Upp War Pro Machines Accessed 35 | . 5 10 5 5 2 . 5 . . 3 . Terminals 20 | . 5 7 3 . 1 . 4 . . . . Fabricators 2 | . . . . 2 . . . . . . . Repair Stations 1 | . . . . . 1 . . . . . . Recycling Units 4 | . . 2 1 1 . . . . . . . Scanalyzers 3 | . . 1 1 1 . . . . . . . Garrison Access 2 | . . . . 1 . . 1 . . . . Total Hacks 79 | . 11 26 12 11 4 . 11 . . 4 . Successful 44 | . 6 14 6 8 3 . 3 . . 4 . Failed 35 | . 5 12 6 3 1 . 8 . . . . Catastrophic 6 | . . 3 1 . . . 2 . . . . Database Lockouts . | . . . . . . . . . . . . Manual 48 | . 11 18 7 5 . . 7 . . . . Terminals 41 | . 11 14 7 . 1 . 8 . . . . Fabricators 4 | . . . . 4 . . . . . . . Repair Stations 3 | . . . . . 3 . . . . . . Recycling Units 16 | . . 10 3 3 . . . . . . . Scanalyzers 7 | . . 2 2 3 . . . . . . . Garrison Access 4 | . . . . 1 . . 3 . . . . Terminal Hacks 13 | . 2 4 . . 1 . 2 . . 4 . Record 2 | . . . . . . . . . . 2 . Part Schematic 1 | . 1 . . . . . . . . . . Robot Analysis 1 | . 1 . . . . . . . . . . Open Door 2 | . . . . . . . . . . 2 . Open DSF 1 | . . . . . 1 . . . . . . Branch Access Points 2 | . . 1 . . . . 1 . . . . Recall Investigation 1 | . . . . . . . 1 . . . . Registered Components 3 | . . 3 . . . . . . . . . Fabricator Hacks 1 | . . . . 1 . . . . . . . Load Schematic 1 | . . . . 1 . . . . . . . Repair Station Hacks 2 | . . . . . 2 . . . . . . Scan Component 1 | . . . . . 1 . . . . . . Repair 1 | . . . . . 1 . . . . . . Recycling Unit Hacks 2 | . . 2 . . . . . . . . . Retrieve Components 2 | . . 2 . . . . . . . . . Scanalyzer 6 | . . 1 2 3 . . . . . . . Insert Component 1 | . . . . 1 . . . . . . . Analyze 1 | . . . . 1 . . . . . . . Retrieve Study 4 | . . 1 2 1 . . . . . . . Garrison Access Hacks . | . . . . . . . . . . . . Unauthorized Hacks 20 | . 4 7 4 4 . . 1 . . . . Terminals 10 | . 4 3 2 . . . 1 . . . . Botnet 10 | . 4 3 2 . . . 1 . . . . Fabricators 1 | . . . . 1 . . . . . . . Recompile 1 | . . . . 1 . . . . . . . Repair Stations . | . . . . . . . . . . . . Recycling Units 8 | . . 4 2 2 . . . . . . . Reject 4 | . . 2 1 1 . . . . . . . Mask 4 | . . 2 1 1 . . . . . . . Scanalyzers . | . . . . . . . . . . . . Garrison Access 1 | . . . . 1 . . . . . . . Jam 1 | . . . . 1 . . . . . . . Data Cores Recovered . | . . . . . . . . . . . . Used . | . . . . . . . . . . . . Hacking Detections 20 | . 3 6 4 2 1 . 4 . . . . Full Trace Events 4 | . . . 1 1 . . 2 . . . . Feedback Events . | . . . . . . . . . . . . Feedback Blocked . | . . . . . . . . . . . . Robot Schematics Acquired . | . . . . . . . . . . . . Robots Built . | . . . . . . . . . . . . Authchips . | . . . . . . . . . . . . Time . | . . . . . . . . . . . . Total Robot Build Rating . | . . . . . . . . . . . . Part Schematics Acquired 2 | . 1 . . 1 . . . . . . . Parts Built . | . . . . . . . . . . . . Authchips . | . . . . . . . . . . . . Time . | . . . . . . . . . . . . Total Part Build Rating . | . . . . . . . . . . . . Part Studies Acquired 4 | . . 1 2 1 . . . . . . . Parts Repaired 1 | . . . . . 1 . . . . . . Time 38 | . . . . . 38 . . . . . . Parts Recycled . | . . . . . . . . . . . . Recycled Matter . | . . . . . . . . . . . . Retrieved Matter . | . . . . . . . . . . . . Retrieved Components 15 | . . 15 . . . . . . . . . Parts Scanalyzed 1 | . . . . 1 . . . . . . . Part Schematics Acquired 1 | . . . . 1 . . . . . . . Parts Damaged . | . . . . . . . . . . . . Bothacking | -11 -10 -9 -8 -7 -6 -6 -5 -5 -5 -5 -4 ------------ Run | Yrd Mat Mat Mat Fac Fac DSF Fac Upp Upp War Pro Used RIF Installer . | . . . . . . . . . . . . Robots Hacked . | . . . . . . . . . . . . Non-combat . | . . . . . . . . . . . . Combat . | . . . . . . . . . . . . Robot Hacks Applied . | . . . . . . . . . . . . Relay Couplers Released 3 | . . . . . . . 3 . . . . Machine Destruction 3 | . . . . . . . 3 . . . . Fabnet Peak Effective % . | . . . . . . . . . . . . Robots Rewired 7 | . . . . . . . . 2 . 5 . Allies Hacked . | . . . . . . . . . . . . Hacks Repelled . | . . . . . . . . . . . . Allies | -11 -10 -9 -8 -7 -6 -6 -5 -5 -5 -5 -4 -------- Run | Yrd Mat Mat Mat Fac Fac DSF Fac Upp Upp War Pro Total Allies 7 | . . . . . . . . 2 . 5 . Largest Group 5 | . . . . . . . . 2 2 5 . Highest-Rated Group 269 | . . . . . . . . 78 78 269 . Highest-Rated Ally 64 | . . . . . . . . 49 49 64 . Total Orders . | . . . . . . . . . . . . Ally Attacks 44 | . . . . . . . . . 23 21 . Total Damage 1653 | . . . . . . . . . 1027 626 . Kills 11 | . . . . . . . . . 6 5 . Allies Corrupted . | . . . . . . . . . . . . Allies Melted . | . . . . . . . . . . . . Intel | -11 -10 -9 -8 -7 -6 -6 -5 -5 -5 -5 -4 ------- Run | Yrd Mat Mat Mat Fac Fac DSF Fac Upp Upp War Pro Active Infowar (turns) 6665 | . . . . 1217 349 443 1262 417 437 1052 1488 Optics 6665 | . . . . 1217 349 443 1262 417 437 1052 1488 Seismic 813 | . . . . . . . 622 . 104 87 . Robot Analysis Total 1 | . 1 . . . . . . . . . . Derelict Logs Recovered 3 | . . . . . . . . 2 . . 1 Drone Launches . | . . . . . . . . . . . . Drone Recoveries . | . . . . . . . . . . . . Exploration | -11 -10 -9 -8 -7 -6 -6 -5 -5 -5 -5 -4 ------------- Run | Yrd Mat Mat Mat Fac Fac DSF Fac Upp Upp War Pro Turns Passed 10304 | 41 615 1963 976 1238 349 443 1262 430 437 1052 1498 Spaces Moved 5906 | 40 476 1330 616 807 224 262 746 251 316 706 132 Core 136 | 2 . . . . . . . . . 2 132 Treads . | . . . . . . . . . . . . Legs 1260 | . 110 1150 . . . . . . . . . Wheels 4510 | 38 366 180 616 807 224 262 746 251 316 704 . Hover . | . . . . . . . . . . . . Flight . | . . . . . . . . . . . . Fastest Speed 50 | 50 80 105 106 115 135 120 110 115 115 115 1000 Average Speed 141 | 78 89 117 115 122 135 134 122 124 118 130 1098 Slowest Speed 1150 | 80 190 250 140 130 135 135 175 175 175 1000 1150 Overloaded Moves . | . . . . . . . . . . . . Propulsion Burnouts . | . . . . . . . . . . . . Robots Hopped . | . . . . . . . . . . . . Potential Cave-ins . | . . . . . . . . . . . . Cave-ins Triggered . | . . . . . . . . . . . . Exploration Rate (%) 50 | 3 77 88 65 29 9 94 21 44 59 93 29 Regions Visited 11 Branch Regions 4 Pre-discovered Areas 1 | . . . . . . . . . . . 1 Known Exits Taken 3 | . . . . . 1 . 1 1 . . . Unknown Exits Taken 7 | 1 1 1 1 1 . . . . 1 1 . Scrap Searched 3 | . . . . . . . . . 2 . 1 Spaces Dug 11 | . . . . . . . 11 . . . . Terrain Destroyed 498 | . . 80 77 2 . . 161 59 55 62 2 Melee . | . . . . . . . . . . . . Projectile 71 | . . 1 . 2 . . 43 7 13 5 . AOE 427 | . . 79 77 . . . 118 52 42 57 2 Terrain Rammed . | . . . . . . . . . . . . Walls Destroyed . | . . . . . . . . . . . . Machines Disabled . | . . . . . . . . . . . . Actions | -11 -10 -9 -8 -7 -6 -6 -5 -5 -5 -5 -4 --------- Run | Yrd Mat Mat Mat Fac Fac DSF Fac Upp Upp War Pro Total 7182 | 46 589 1592 773 966 270 328 944 334 349 822 169 Wait 362 | . 44 81 47 66 39 . 32 20 8 14 11 Move 5895 | 39 475 1329 615 806 223 261 745 250 315 705 132 Hop . | . . . . . . . . . . . . Pick Up 136 | 2 11 31 17 13 4 13 30 . 1 11 3 Fast Attach 53 | 5 4 11 6 8 1 4 4 1 . 7 2 Attach 78 | . 3 4 12 5 3 7 13 3 6 15 7 Detach 31 | . 2 6 . 2 . 2 4 2 2 9 2 Swap 65 | . 1 13 12 8 . 6 15 4 5 1 . Drop 137 | . 6 29 17 18 . 18 32 . . 16 1 Fire 335 | . 43 73 46 38 . 15 69 12 12 16 11 Melee . | . . . . . . . . . . . . Ram 6 | . . . 1 2 . 2 . . . 1 . Kick 15 | . . 15 . . . . . . . . . Crush . | . . . . . . . . . . . . Escape Stasis . | . . . . . . . . . . . . Rewire 69 | . . . . . . . . 42 . 27 . Trap . | . . . . . . . . . . . . Miscellaneous . | . . . . . . . . . . . . Route ------- -11/Scrapyard -10/Materials (discovered 3 exits: *Mat x2 / [*Min]) -9/Materials (discovered 4 exits: *Mat x2 / *Min x2) -8/Materials -7/Factory (discovered 2 exits: *Fac x2) -6/Factory -6/DSF -5/Factory (discovered 4 exits: *Upp x2 / Ext x2) -5/Upper Caves -5/Upper Caves (discovered 2 exits: [*Fac] / *War) -5/Warlord -4/Proximity Caves History --------- Turn | Location | Event 9 | -11/Scrapyard | Discovered new exit (range 15) 42 | -11/Scrapyard | Entered Materials 296 | -10/Materials | Discovered new exit (range 16) 313 | -10/Materials | Build established: Mutant 407 | -10/Materials | Discovered new exit (range 14) 541 | -10/Materials | Discovered new exit (range 15) 657 | -10/Materials | Entered another Materials area 657 | -9/Materials | Evolved 2 slots: Propulsion x1, Utility x1 685 | -9/Materials | Identified exit to Mines 1215 | -9/Materials | Destroyed 7 combat bots 1556 | -9/Materials | Discovered new exit (range 15) 1821 | -9/Materials | Discovered new exit (range 15) 2620 | -9/Materials | Entered another Materials area 2620 | -8/Materials | Evolved 2 slots: Weapon x2 2914 | -8/Materials | Build established: Tank 3420 | -8/Materials | First assault squad dispatched 3491 | -8/Materials | Lost 6 parts (1p2n2u1w) 3509 | -8/Materials | Discovered new exit (range 3) 3596 | -8/Materials | Entered Factory 3596 | -7/Factory | Evolved 2 slots: Utility x2 3738 | -7/Factory | Discovered new exit (range 6) 4762 | -7/Factory | Discovered new exit (range 14) 4796 | -7/Factory | First assault squad dispatched 4834 | -7/Factory | Entered another Factory area 4834 | -6/Factory | Evolved 2 slots: Utility x2 5032 | -6/Factory | Repaired Hrd. Medium Armor Plating 5182 | -6/Factory | Identified exit to DSF 5183 | -6/Factory | Entered DSF 5211 | -6/DSF | Additional patrols routed to DSF 5305 | -6/DSF | Discovered new exit (range 19) 5528 | -6/DSF | Lost 4 parts (2n1u1w) 5590 | -6/DSF | Build established: Scavenger-Tank 5626 | -6/DSF | Entered Factory 5626 | -5/Factory | Evolved 2 slots: Power x1, Propulsion x1 5686 | -5/Factory | Garrison activated, responded to threat 5970 | -5/Factory | Lost 3 parts (1u2w) 6106 | -5/Factory | Spotted B-75 Beast 6122 | -5/Factory | Destroyed B-75 Beast 6380 | -5/Factory | Identified exit to Upper Caves 6380 | -5/Factory | Identified exit to Extension 6730 | -5/Factory | Lost 3 parts (2n1w) 6735 | -5/Factory | Destroyed 9 combat bots 6888 | -5/Factory | Entered Upper Caves 6951 | -5/Upper Caves | Attracted the attention of an 0b10 outpost 7124 | -5/Upper Caves | Identified exit to Upper Caves 7200 | -5/Upper Caves | Encountered a Warlord checkpoint 7224 | -5/Upper Caves | Learned Factory security intel 7318 | -5/Upper Caves | Entered another Upper Caves area 7318 | -5/Upper Caves | Accompanied by 2 allies 7318 | -5/Upper Caves | Discovered new exit (range 11) 7330 | -5/Upper Caves | Attracted the attention of an 0b10 checkpoint 7448 | -5/Upper Caves | Spotted B-75 Beast 7462 | -5/Upper Caves | Destroyed B-75 Beast 7747 | -5/Upper Caves | Discovered new exit (range 8) 7755 | -5/Upper Caves | Entered Warlord 7793 | -5/Warlord | System corruption cleaned by Quarantine Array 8146 | -5/Warlord | Warlord's base attacked by MAIN.C 8166 | -5/Warlord | Found Prototype Launcher 8166 | -5/Warlord | Identified Vortex Catalyst Activator 8173 | -5/Warlord | Found Prototype Piercing Weapon 8173 | -5/Warlord | Identified Vortex Lance 8179 | -5/Warlord | Found Prototype Energy Gun 8179 | -5/Warlord | Identified Vortex Rifle 8208 | -5/Warlord | Found Vortex Rifle 8305 | -5/Warlord | Met Warlord 8468 | -5/Warlord | Build established: Scavenger-Skirmisher 8496 | -5/Warlord | Warlord forces counterattacked 8652 | -5/Warlord | Opened side exit 8672 | -5/Warlord | Discovered new exit (range 13) 8673 | -5/Warlord | Spotted Executioner 8674 | -5/Warlord | Spotted Striker 8684 | -5/Warlord | Destroyed Striker 8700 | -5/Warlord | Core integrity fell below 50% 8704 | -5/Warlord | Allies destroyed Executioner 8712 | -5/Warlord | Destroyed 13 combat bots 8712 | -5/Warlord | Lost 3 allies 8733 | -5/Warlord | Lost 9 parts (2p3n4u) 8746 | -5/Warlord | Spotted Striker 8746 | -5/Warlord | Spotted Striker 8783 | -5/Warlord | Destroyed 9 combat bots 8807 | -5/Warlord | Entered Proximity Caves 8825 | -4/Proximity Caves | Lost 5 parts (1n1u3w) 8957 | -4/Proximity Caves | Learned location of Quarantine (-2) 9046 | -4/Proximity Caves | Build established: Mutant 10302 | -4/Proximity Caves | Core integrity fell below 20% 10306 | -4/Proximity Caves | Core melted Last Messages --------------- 10291_ Power failure, Rnf. Deuterium Engine shutdown. 10292_ G-67 Veteran heat damages Field Laser. 10292_ Mak. Light Armor Plating destroyed. 10293_ G-67 Veteran overheating. 10294_ Adv. Cooling System broken. 10294_ Overheating: Short circuit. 10294_ G-67 Veteran overheating. 10296_ Overheating: Energy bleed (-12). 10296_ G-67 Veteran heat damages core (-16). 10296_ G-67 Veteran overheating. 10298_ Acquired Energy Well. 10300_ Overheating: Matter decay (-23). 10302_ Power failure, Rnf. Deuterium Engine shutdown. 10302_ Overheating: Core damaged (-160). 10303_ Overheating: Imp. Cooling System damaged (-17). 10303_ Lyr. Heavy Armor Plating destroyed. 10304_ G-67 Veteran heat spikes uncontrollably. 10305_ Overheating: System interference. 10305_ Thermoblaster temporarily disabled. 10306_ Overheating: Core damaged (-100). Map ----- +----------------------------------------------------+ | ?????????????????????????????????????????????????? | | ###?????????????###??????????????????????????????? | | ? ##???#####???## ##?????????????????????????????? | | #??## ##?## ####??????????????????????????? | | #### ### ##?????????????????????????? | | ## ## ##????????????????????????? | | ## #????????????????????????? | | ## #????????????????????????? | | ## ###### ##????????????????????????? | | "# # ##????###?????????????????????????? | | # #### ### ##???????????????????????????????? | | # #??# ### ##??##??????????????????????????? | | # #??# ### ### ##?????????????????????????? | | # #??# ## #?????????????????????????? | | # #??## ### ##?????????????????????????? | | + ###?# #?## ##??????????????????????????? | | + ### ##?## ##???????????????????????????? | | # #?## ##???????????????????? ???????? | | ## ### ##??????????????????? ???????? | | # ###?????????????????? #???????? | | # ### ##?????????????????? ##??????? | | # # #?## ############?????? ##?????? | | # # #??## #???? #?????? | | ## # #???# ######### #?? #????? | | ? # #???# ##???????# #; ?????????? | | ##???## #????????# @; #????????????????? | | #?????###????????# l #????????????????? | | #???????????????# g #???????????????? | | #???????????????# gg #??????????????? | | ???????????????# #?????????????? | | ???????????????# ???????????? | | ??????????????? ?????????? | | ??????????????? ???????? | | ?????????????? ???????? | | #??????????????# ???????? | | ? ???????????????## ????????? | | ???? ?????????????????## ????????? | | ???????????????????????## ### ????????? | | ????????????????????????? ##??# ?????????? | | ????????????????????????? ##????# ?????????? | | ????????????????????????? ##??????????????????? | | ????????????????????????? ##???????????????????? | | ????????????????????????? ##????????????????????? | | ????????????????????????? ??????????????????????? | | ????????????????????????? ??????????????????????? | | ?????????????????????????????????????????????????? | | ?????????????????????????????????????????????????? | | ?????????????????????????????????????????????????? | | ?????????????????????????????????????????????????? | | ?????????????????????????????????????????????????? | +----------------------------------------------------+ Best States ------------- Heat Dissipation 124 Energy Generation 33 Energy Capacity 530 Matter Stores 300 Matter Capacity 300 Sight Range 20 Terrain Scan Density 10 Armor Coverage 1300 Evasion (%) 55 Recoil Reduction 1 Authchip Count 1 Item Schematics ----------------- Huge Storage Unit | -10/Materials | Hacked Hrd. Medium Armor Plating | -7/Factory | Scanalyzed Robot Schematics ------------------ None Fabricated ------------ Nothing Repaired ---------- Hrd. Medium Armor Plating | 10% | -6/Factory Studied --------- Imp. Aluminum Leg | -9/Materials | Hacked Wheel | -8/Materials | Hacked Com. Wheel | -8/Materials | Hacked Arm. Huge Wheel | -7/Factory | Hacked Alien Tech Used ----------------- None Achievements -------------- None Challenges ------------ None Game ------ Seed NullHardlightGreatsword Manual? 0 Play Time 01:38:54 Cumulative 229.7 hours Start 2026.08.04 @ 14:12:45 End 2026.08.04 @ 20:57:27 Sessions 1 Manual Loads 0 Difficulty Rogue Special Mode None Game No. 282 Rogue 282 Adventurer 0 Explorer 0 Win Type - Total 6 Types 6/0/0/0/0/0/0/0/0/0 Lore% 80 Gallery% 63 Achievement% 51 Wizard Run 0 Options --------- Layout 0 ASCII 0 Keyboard 0 Movement Numpad Keybinds 0 Fullscreen 1 Font 18/Terminus Map View 76x50 Zoom Use 0% Tactical HUD 1 Map Filters NONE Filters NONE Steam 1 RUN: d539595c-7af9-436a-b277-edcc29511b2c